fUST/lending_fUST_20260205
["ID","MTS","AMOUNT","RATE_DAILY","PERIOD"]
[404524140,1770241838591,-500.0,0.00013266,2]
[404524142,1770241838600,-500.0,0.00013266,2]
[404524144,1770241838610,-500.0,0.00013266,2]
[404524146,1770241838619,-500.0,0.00013266,2]
[404524147,1770241838629,-500.0,0.00013266,2]
[404524149,1770241838639,-500.0,0.00013266,2]
[404524151,1770241838648,-357.25346499,0.00013266,2]
[404524152,1770241838658,-500.0,0.00013266,2]
[404524153,1770241838667,-500.0,0.00013266,2]
[404524154,1770241838676,-500.0,0.00013266,2]
[404524155,1770241838686,-500.0,0.00013266,2]
[404524156,1770241838695,-500.03055864,0.00013266,2]
[404524157,1770241838705,-500.0,0.00013266,2]
[404524158,1770241838714,-500.0,0.00013266,2]
[404524159,1770241838724,-500.0,0.00013266,2]
[404524160,1770241838733,-488.44801081,0.00013266,2]
[404524161,1770241838743,-500.0,0.00013266,2]
[404524162,1770241838753,-500.0,0.00013266,2]
[404524163,1770241838764,-202.24475694,0.00013266,2]
[404524164,1770241838773,-500.0,0.00013266,2]
[404524165,1770241838784,-500.0,0.00013266,2]
[404524166,1770241838794,-500.0,0.00013266,2]
[404524167,1770241838804,-500.0,0.00013266,2]
[404524168,1770241838814,-500.0,0.00013266,2]
[404524169,1770241838824,-380.04674788,0.00013266,2]
[404524203,1770241840597,-119.95325212,0.00013266,2]
[404524205,1770241840606,-500.0,0.00013266,2]
[404524207,1770241840616,-500.0,0.00013266,2]
[404524209,1770241840625,-500.0,0.00013266,2]
[404524211,1770241840634,-500.0,0.00013266,2]
[404524213,1770241840644,-500.0,0.00013266,2]
[404524215,1770241840653,-500.0,0.00013266,2]
[404524217,1770241840663,-500.0,0.00013266,2]
[404524219,1770241840672,-500.0,0.00013266,2]
[404524221,1770241840682,-500.0,0.00013266,2]
[404524223,1770241840691,-500.0,0.00013266,2]
[404524225,1770241840702,-500.0,0.00013266,2]
[404524227,1770241840711,-500.0,0.00013266,2]
[404524229,1770241840720,-237.34674788,0.00013266,2]
[404524231,1770241840732,-262.65325212,0.00013266,2]
[404524233,1770241840742,-500.0,0.00013266,2]
[404524235,1770241840751,-500.0,0.00013266,2]
[404524237,1770241840761,-500.0,0.00013266,2]
[404524239,1770241840771,-500.0,0.00013266,2]
[404524241,1770241840781,-500.0,0.00013266,2]
[404524243,1770241840791,-500.0,0.00013266,2]
[404524245,1770241840800,-500.0,0.00013266,2]
[404524248,1770241840810,-500.0,0.00013266,2]
[404524250,1770241840820,-500.0,0.00013266,2]
[404524252,1770241840829,-500.0,0.00013266,2]
[404524253,1770241840839,-50000.0,0.00013267,2]
[404524256,1770241840849,-163.52808517,0.00013267,2]
[404524257,1770241840858,-554.9767039,0.00013267,2]
[404524260,1770241840868,-500.0,0.00013272,2]
[404524261,1770241840877,-500.0,0.00013273,2]
[404524264,1770241840887,-500.0,0.00013273,2]
[404524265,1770241840896,-500.0,0.00013273,2]
[404524268,1770241840906,-175.69914693,0.00013273,2]
[404524270,1770241840915,-500.0,0.00013273,2]
[404524271,1770241840925,-500.0,0.00013273,2]
[404524273,1770241840934,-500.0,0.00013273,2]
[404524275,1770241840944,-500.0,0.00013273,2]
[404524278,1770241840953,-500.0,0.00013273,2]
[404524279,1770241840963,-500.0,0.00013273,2]
[404524281,1770241840972,-193.85351425,0.00013273,2]
[404524283,1770241840982,-500.0,0.00013273,2]
[404524286,1770241840991,-179.48496468,0.00013273,2]
[404524288,1770241841001,-500.0,0.00013273,2]
[404524290,1770241841010,-608.32613042,0.00013273,2]
[404524291,1770241841019,-500.0,0.00013273,2]
[404524294,1770241841028,-500.0,0.00013273,2]
[404524295,1770241841039,-500.0,0.00013273,2]
[404524298,1770241841048,-500.0,0.00013273,2]
[404524300,1770241841058,-500.0,0.00013273,2]
[404524301,1770241841067,-500.0,0.00013273,2]
[404524304,1770241841077,-500.0,0.00013273,2]
[404524306,1770241841086,-500.0,0.00013273,2]
[404524308,1770241841097,-1310.55575,0.00013528,2]
[404524310,1770241841107,-600.0,0.00013537,2]
[404524312,1770241841117,-300.0,0.00013537,2]
[404524314,1770241841126,-300.0,0.00013537,2]
[404524316,1770241841135,-300.0,0.00013537,2]
[404524318,1770241841144,-300.0,0.00013537,2]
[404524320,1770241841153,-300.0,0.00013537,2]
[404524322,1770241841163,-300.0,0.00013537,2]
[404524323,1770241841172,-300.0,0.00013537,2]
[404524326,1770241841181,-300.0,0.00013537,2]
[404524327,1770241841190,-500.0,0.00013545,2]
[404524330,1770241841199,-300.0,0.00013673,2]
[404524332,1770241841210,-500.0,0.00013698,2]
[404524333,1770241841226,-500.0,0.00013698,2]
[404524335,1770241841235,-500.0,0.00013698,2]
[404524336,1770241841244,-518.94139039,0.00013698,2]
[404524338,1770241841254,-500.0,0.00013698,2]
[404524340,1770241841265,-271.37519072,0.00013698,2]
[404524342,1770241841275,-358.72251981,0.00013698,2]
[404524344,1770241841285,-485.357492,0.00013699,2]
[404524346,1770241841295,-23168.7836169,0.00013699,2]
[404524348,1770241841304,-500.0,0.00013699,2]
[404524350,1770241841314,-160.9968606,0.00013699,2]
[404524352,1770241841323,-647.09803383,0.00013699,2]
[404524354,1770241841333,-500.0,0.00013699,2]
[404524356,1770241841344,-500.0,0.00013699,2]
[404524358,1770241841353,-495.25459226,0.00013699,2]
[404524360,1770241841362,-500.0,0.00013699,2]
[404524362,1770241841371,-500.0,0.00013699,2]
[404524364,1770241841380,-353.70713352,0.00013699,2]
[404524366,1770241841390,-500.72493169,0.00013699,2]
[404524368,1770241841399,-500.0,0.00013699,2]
[404524370,1770241841409,-312.2677801,0.00013699,2]
[404524372,1770241841418,-500.0,0.00013699,2]
[404524374,1770241841427,-500.0,0.00013699,2]
[404524376,1770241841436,-500.0,0.00013699,2]
[404524378,1770241841446,-500.0,0.00013699,2]
[404524380,1770241841456,-500.0,0.00013699,2]
[404524382,1770241841465,-500.0,0.00013699,2]
[404524384,1770241841474,-235.41840292,0.00013699,2]
[404524386,1770241841483,-500.0,0.00013699,2]
[404524388,1770241841493,-500.0,0.00013699,2]
[404524390,1770241841502,-525.80133864,0.00013699,2]
[404524392,1770241841511,-500.0,0.00013699,2]
[404524394,1770241841520,-501.0784125,0.00013699,2]
[404524396,1770241841530,-500.0,0.00013699,2]
[404524398,1770241841539,-500.0,0.00013699,2]
[404524400,1770241841549,-500.58536311,0.00013699,2]
[404524402,1770241841558,-500.0,0.00013699,2]
[404524404,1770241841567,-500.0,0.00013699,2]
[404524406,1770241841577,-500.0,0.00013699,2]
[404524408,1770241841586,-166.84344924,0.00013699,2]
[404524410,1770241841596,-500.0,0.00013699,2]
[404524412,1770241841605,-500.0,0.00013699,2]
[404524414,1770241841615,-500.0,0.00013699,2]
[404524416,1770241841625,-500.0,0.00013699,2]
[404524418,1770241841634,-160.88217928,0.00013699,2]
[404524420,1770241841644,-500.0,0.00013699,2]
[404524422,1770241841653,-500.74586485,0.00013699,2]
[404524424,1770241841662,-160.08067583,0.00013699,2]
[404524426,1770241841671,-500.0,0.00013699,2]
[404524428,1770241841680,-500.83215907,0.00013699,2]
[404524430,1770241841689,-500.0,0.00013699,2]
[404524432,1770241841698,-500.0,0.00013699,2]
[404524434,1770241841707,-500.0,0.00013699,2]
[404524436,1770241841716,-500.0,0.00013699,2]
[404524438,1770241841725,-620.83444506,0.00013699,2]
[404524440,1770241841735,-192.4719613,0.00013699,2]
[404524442,1770241841744,-500.0,0.00013699,2]
[404524445,1770241841753,-500.0,0.00013699,2]
[404524447,1770241841763,-500.0,0.00013699,2]
[404524449,1770241841772,-500.0,0.00013699,2]
[404524450,1770241841783,-500.0,0.00013699,2]
[404524452,1770241841793,-16.29553655,0.00013699,2]
[404524465,1770241841909,-561.9187011,0.00013699,2]
[404524467,1770241841919,-500.0,0.00013699,2]
[404524469,1770241841928,-500.0,0.00013699,2]
[404524471,1770241841938,-363.72,0.000137,2]
[404524473,1770241841947,-500.0,0.00013819,2]
[404524475,1770241841956,-1000.0,0.00013821,2]
[404524477,1770241841966,-986.28699622,0.00013821,2]
[404524643,1770241845275,-13.71300378,0.00013821,2]
[404524644,1770241845285,-420.78900646,0.00013821,2]
[404524645,1770241845296,-1000.0,0.00013821,2]
[404524646,1770241845305,-182.7321721,0.00013821,2]
[404524647,1770241845315,-1000.0,0.00013821,2]
[404524648,1770241845324,-500.0,0.00013821,2]
[404524649,1770241845333,-399.2481233,0.00013821,2]
[404524650,1770241845343,-1000.0,0.00013821,2]
[404524651,1770241845353,-333.60544809,0.00013821,2]
[404524652,1770241845362,-501.00904726,0.00013821,2]
[404524653,1770241845372,-1000.0,0.00013821,2]
[404524654,1770241845381,-1000.0,0.00013821,2]
[404524655,1770241845390,-1000.0,0.00013821,2]
[404524656,1770241845401,-1003.45439224,0.00013821,2]
[404524657,1770241845410,-500.0,0.00014093,2]
[404524658,1770241845420,-1310.55575,0.00014097,2]
[404524659,1770241845428,-600.0,0.00014221,2]
[404524660,1770241845437,-1000.0,0.00014247,2]
[404524661,1770241845447,-1000.0,0.00014247,2]
[404524662,1770241845457,-484.5242166,0.00014247,2]
[404524663,1770241845465,-500.0,0.00014247,2]
[404524664,1770241845475,-221.1882638,0.00014247,2]
[404524665,1770241845483,-1000.0,0.00014247,2]
[404524666,1770241845492,-1000.0,0.00014247,2]
[404524667,1770241845502,-500.0,0.00014247,2]
[404524668,1770241845511,-1032.11843782,0.00014247,2]
[404524669,1770241845520,-1000.0,0.00014247,2]
[404524670,1770241845530,-1000.0,0.00014247,2]
[404524671,1770241845541,-1000.0,0.00014247,2]
[404524672,1770241845550,-500.0,0.00014247,2]
[404524673,1770241845560,-401.24199667,0.00014247,2]
[404524674,1770241845570,-352.26530463,0.00014247,2]
[404524675,1770241845579,-503.30750217,0.00014247,2]
[404524676,1770241845590,-1000.0,0.00014247,2]
[404524677,1770241845599,-500.0,0.00014367,2]
[404524678,1770241845609,-1313.60155111,0.00014368,2]
[404524679,1770241845618,-1500.0,0.00014368,2]
[404524680,1770241845628,-1500.0,0.00014368,2]
[404524681,1770241845638,-1500.0,0.00014368,2]
[404524682,1770241845648,-1348.50333343,0.00014368,2]
[404524683,1770241845657,-1500.0,0.00014368,2]
[404524684,1770241845667,-1500.0,0.00014368,2]
[404524685,1770241845676,-1500.0,0.00014368,2]
[404524686,1770241845685,-1480.0,0.00014489,2]
[404524687,1770241845695,-420.0,0.00014544,2]
[404524688,1770241845704,-500.0,0.00014641,2]
[404524689,1770241845713,-1310.55575,0.00014667,2]
[404524690,1770241845723,-900.0,0.00014768,2]
[404524691,1770241845732,-500.0,0.00014795,2]
[404524692,1770241845742,-360.15610102,0.00014795,2]
[404524693,1770241845751,-1000.0,0.00014795,2]
[404524694,1770241845761,-1500.0,0.00014795,2]
[404524695,1770241845771,-1500.0,0.00014795,2]
[404524696,1770241845780,-1500.0,0.00014795,2]
[404524697,1770241845791,-501.29954058,0.00014795,2]
[404524698,1770241845802,-1001.21829847,0.00014795,2]
[404524699,1770241845812,-720.0,0.00014891,2]
[404524700,1770241845822,-199.09406855,0.00014915,2]
[404524701,1770241845831,-2000.0,0.00014916,2]
[404524702,1770241845841,-1006.74888007,0.00014916,2]
[404524703,1770241845851,-2000.0,0.00014916,2]
[404524704,1770241845860,-2000.0,0.00014916,2]
[404524705,1770241845871,-2000.0,0.00014916,2]
[404524706,1770241845882,-2000.0,0.00014916,2]
[404524707,1770241845893,-297.62,0.00015172,2]
[404524708,1770241845902,-176.98,0.00015172,2]
[404524710,1770241845913,-177.0,0.00015173,2]
[404524712,1770241845924,-1310.55575,0.00015236,2]
[404524713,1770241845933,-1200.0,0.00015316,2]
[404524716,1770241845944,-2000.0,0.00015342,2]
[404524718,1770241845954,-2000.0,0.00015342,2]
[404524719,1770241845963,-2500.0,0.00015464,2]
[404524721,1770241845972,-1996.53604762,0.00015464,2]
[404524723,1770241845982,-2500.0,0.00015464,2]
[404524725,1770241845992,-2500.0,0.00015464,2]
[404524727,1770241846002,-2500.0,0.00015464,2]
[404524729,1770241846011,-1310.55575,0.00015805,2]
[404524731,1770241846022,-300.0,0.00015864,2]
[404524733,1770241846032,-500.0,0.0001589,2]
[404524735,1770241846042,-500.0,0.0001589,2]
[404524737,1770241846051,-587.0,0.00015946,2]
[404524739,1770241846062,-1234.13746571,0.00016012,2]
[404524741,1770241846072,-2201.03217182,0.00016012,2]
[404524743,1770241846081,-3000.0,0.00016012,2]
[404524745,1770241846091,-3000.0,0.00016012,2]
[404524747,1770241846100,-1310.55575,0.00016375,2]
[404524749,1770241846112,-864.0,0.0001638,2]
[404524751,1770241846121,-1500.0,0.0001656,2]
[404524753,1770241846131,-1500.0,0.0001656,2]
[404524756,1770241846142,-204.0,0.00017172,2]
[404524758,1770241846152,-356.0,0.00017482,2]
[404524759,1770241846162,-1000.0,0.00018018,2]
[404524762,1770241846171,-231.0,0.00019173,2]
[404524763,1770241846181,-208.48,0.000193,2]
[404524765,1770241846190,-1000.0,0.0001982,2]
[404524766,1770241846200,-244.0,0.0001982,2]
[404524767,1770241846209,-5222.50842057,0.00019831,2]
[404524769,1770241846221,-485.357492,0.00020548,2]
[404524770,1770241846231,-258.0,0.00021173,2]
[404524771,1770241846240,-1000.0,0.00021802,10]
[404524772,1770241846249,-492.0,0.00021802,10]
[404524773,1770241846259,-157.7,0.000225,7]
[404524774,1770241846269,-741.08018794,0.00022506,2]
[404524775,1770241846278,-1000.0,0.00023982,10]
[404524777,1770241846289,-791.0,0.00023982,10]
[404524778,1770241846298,-206.54799694,0.000248,2]
[404524779,1770241846307,-510.0,0.0002638,30]
[404524780,1770241846316,-5222.50842057,0.00026488,2]
[404524781,1770241846326,-500.0,0.00026572,10]
[404524782,1770241846335,-157.7,0.000287,7]
[404524784,1770241846344,-223.73967989,0.00028954,2]
[404524785,1770241846355,-215.6946866,0.00028954,2]
[404524787,1770241846365,-862.77874639,0.00028954,2]
[404524789,1770241846375,-1941.25217937,0.00028954,2]
[404524791,1770241846384,-3451.11498555,0.00028954,2]
[404524793,1770241846393,-5392.36716492,0.00028954,2]
[404524794,1770241846402,-7765.00871749,0.00028954,2]
[404524796,1770241846412,-208.48,0.00029,14]
[404524797,1770241846421,-894.95871956,0.00029422,2]
[404524798,1770241846430,-6812.40841165,0.00029959,2]
[404524799,1770241846440,-500.0,0.00030082,10]
[404524800,1770241846450,-631.0,0.00031326,2]
[404524801,1770241846459,-1371.0,0.00031326,2]
[404524802,1770241846468,-2156.0,0.00031326,2]
[404524803,1770241846478,-2013.65711901,0.00031873,2]
[404524804,1770241846487,-182.16,0.00032534,32]
[404524805,1770241846497,-5222.50842057,0.00033146,2]
[404524806,1770241846506,-152.42537049,0.000332,117]
[404524807,1770241846515,-3579.83487825,0.00034323,2]
[404524808,1770241846524,-1313.460695,0.00035616,31]
[404524809,1770241846535,-1313.460695,0.00035616,31]
[404524810,1770241846545,-1313.460695,0.00035616,31]
[404524811,1770241846555,-1313.460695,0.00035616,31]
[404524812,1770241846565,-1313.460695,0.00035616,31]
[404524813,1770241846575,-1313.460695,0.00035616,31]
[404524814,1770241846584,-1313.460695,0.00035616,31]
[404524815,1770241846594,-1313.460695,0.00035616,31]
[404524816,1770241846603,-1313.460695,0.00035616,31]
[404524817,1770241846613,-1313.460695,0.00035616,31]
[404524818,1770241846623,-1313.460695,0.00035616,31]
[404524819,1770241846633,-1313.460695,0.00035616,31]
[404524820,1770241846642,-1313.460695,0.00035616,31]
[404524821,1770241846652,-1313.460695,0.00035616,31]
[404524822,1770241846662,-1313.460695,0.00035616,31]
[404524823,1770241846671,-1313.460695,0.00035616,31]
[404524824,1770241846681,-1313.460695,0.00035616,31]
[404524825,1770241846691,-1313.460695,0.00035616,31]
[404524826,1770241846700,-1313.460695,0.00035616,31]
[404524827,1770241846712,-1313.460703,0.00035616,31]
[404524828,1770241846723,-173.977922,0.00035616,31]
[404524829,1770241846733,-528.8905112,0.00036126,2]
[404524830,1770241846743,-281.9340518,0.00036126,2]
[404524831,1770241846752,-2148.9062187,0.00036126,2]
[404524832,1770241846762,-5593.49199726,0.00036772,2]
[404524833,1770241846772,-157.7,0.000383,7]
[404524834,1770241846782,-208.48,0.000383,30]
[404524835,1770241846792,-212.86130883,0.00038387,10]
[404524836,1770241846802,-227.0,0.00038762,2]
[404524838,1770241846812,-226.0,0.0003893,2]
[404524840,1770241846822,-100000.0,0.0003899,2]
[404524842,1770241846831,-227.0,0.0003913,2]
[404524844,1770241846840,-226.0,0.00039157,2]
[404524846,1770241846850,-226.0,0.00039554,7]
[404524848,1770241846859,-226.0,0.00039694,7]
[404524850,1770241846868,-389.93748134,0.00039713,10]
[404524851,1770241846878,-2000.0,0.00039713,120]
[404524852,1770241846887,-101780.73331441,0.00039714,2]
[404524853,1770241846896,-487.0,0.00039714,2]
[404524855,1770241846907,-487.0,0.00039714,2]
[404524857,1770241846916,-487.0,0.00039714,2]
[404524859,1770241846926,-487.0,0.00039714,2]
[404524861,1770241846934,-487.0,0.00039714,2]
[404524863,1770241846944,-487.0,0.00039714,2]
[404524865,1770241846953,-487.0,0.00039714,2]
[404524867,1770241846963,-487.0,0.00039714,2]
[404524869,1770241846972,-487.0,0.00039714,2]
[404524871,1770241846982,-487.0,0.00039714,2]
[404524873,1770241846991,-487.0,0.00039714,2]
[404524875,1770241847000,-487.0,0.00039714,2]
[404524877,1770241847009,-487.0,0.00039714,2]
[404524879,1770241847018,-487.0,0.00039714,2]
[404524881,1770241847027,-487.0,0.00039714,2]
[404524883,1770241847037,-529.47,0.00039714,2]
[404524885,1770241847047,-5222.50842057,0.00039803,2]
[404524887,1770241847055,-226.0,0.00039903,7]
[404524889,1770241847065,-226.0,0.00040003,2]
[404524891,1770241847074,-226.0,0.00040088,2]
[404524892,1770241847084,-226.0,0.00040247,2]
[404524893,1770241847095,-226.0,0.00040299,2]
[404524894,1770241847104,-228.0,0.00040327,7]
[404524895,1770241847113,-226.0,0.00040439,120]
[404524896,1770241847123,-226.0,0.00040481,120]
[404524897,1770241847218,-228.0,0.00040645,2]
[404524898,1770241847230,-227.0,0.00040647,2]
[404524899,1770241847240,-226.0,0.00040651,2]
[404524900,1770241847250,-226.0,0.00040686,7]
[404524901,1770241847261,-226.0,0.00040701,2]
[404524902,1770241847272,-515.55,0.00040993,120]
[404524903,1770241847282,-226.0,0.00041058,2]
[404524904,1770241847297,-386.61250907,0.00041096,31]
[404524905,1770241847306,-208.48,0.000411,30]
[404524906,1770241847315,-226.0,0.00041476,2]
[404524907,1770241847325,-227.0,0.00041589,7]
[404524908,1770241847334,-515.55,0.00041591,120]
[404524909,1770241847342,-227.0,0.00041765,120]
[404524910,1770241847352,-226.0,0.00041857,2]
[404524911,1770241847361,-228.0,0.00041942,120]
[404524912,1770241847370,-1152.17,0.00042,14]
[404524913,1770241847379,-515.55,0.00042189,120]
[404524914,1770241847389,-515.55,0.00042788,120]
[404524915,1770241847398,-515.55,0.00043386,120]
[404524916,1770241847408,-325.074123,0.00043762,60]
[404524917,1770241847418,-515.55,0.00043984,120]
[404524918,1770241847428,-1053.659932,0.00044189,60]
[404524919,1770241847439,-714.045331,0.00044189,60]
[404524920,1770241847448,-515.55,0.00044583,120]
[404524921,1770241847459,-659.58269153,0.00045,120]
[404524922,1770241847469,-8150.3888147,0.00045,120]
[404524923,1770241847479,-194.21185071,0.00045,2]
[404524924,1770241847489,-515.55,0.00045181,120]
[404524925,1770241847498,-297.5618677,0.00045728,2]
[404524926,1770241847508,-535.61136186,0.00045728,2]
[404524927,1770241847518,-355.77191531,0.00045728,2]
[404524928,1770241847527,-515.55,0.00045779,120]
[404524929,1770241847537,-515.55,0.00046377,120]
[404524930,1770241847548,-425.74,0.000465,60]
[404524931,1770241847557,-250.0,0.00046594,2]
[404524932,1770241847566,-250.0,0.00046594,2]
[404524933,1770241847575,-500.0,0.00046594,2]
[404524934,1770241847585,-250.0,0.00046594,2]
[404524935,1770241847594,-500.0,0.00046594,2]
[404524936,1770241847603,-250.0,0.00046594,2]
[404524937,1770241847614,-500.0,0.00046594,2]
[404524938,1770241847623,-250.0,0.00046594,2]
[404524939,1770241847633,-500.0,0.00046594,2]
[404524940,1770241847643,-250.0,0.00046594,2]
[404524941,1770241847652,-250.0,0.00046594,2]
[404524942,1770241847661,-500.0,0.00046594,2]
[404524943,1770241847670,-500.0,0.00046594,2]
[404524944,1770241847680,-250.0,0.00046594,2]
[404524945,1770241847688,-500.0,0.00046594,2]
[404524946,1770241847698,-500.0,0.00046594,2]
[404524947,1770241847707,-250.0,0.00046594,2]
[404524948,1770241847716,-250.0,0.00046594,2]
[404524949,1770241847725,-500.0,0.00046594,2]
[404524950,1770241847735,-250.0,0.00046594,2]
[404524951,1770241847744,-250.0,0.00046594,2]
[404524952,1770241847755,-500.0,0.00046594,2]
[404524953,1770241847765,-250.0,0.00046594,2]
[404524954,1770241847774,-249.92010103,0.00046594,2]
[404524955,1770241847784,-250.0,0.00046594,2]
[404524956,1770241847794,-586.94060157,0.00046594,2]
[404524957,1770241847803,-250.0,0.00046594,2]
[404524958,1770241847813,-500.0,0.00046594,2]
[404524959,1770241847823,-250.0,0.00046594,2]
[404524960,1770241847832,-250.0,0.00046594,2]
[404524961,1770241847841,-250.0,0.00046594,2]
[404524962,1770241847851,-500.0,0.00046594,2]
[404524963,1770241847861,-250.0,0.00046594,2]
[404524964,1770241847871,-250.0,0.00046594,2]
[404524965,1770241847881,-194.72792766,0.00046594,2]
[404524966,1770241847891,-500.0,0.00046594,2]
[404524967,1770241847900,-250.0,0.00046594,2]
[404524968,1770241847910,-250.0,0.00046594,2]
[404524969,1770241847920,-201.93286099,0.00046594,2]
[404524970,1770241847930,-500.0,0.00046594,2]
[404524971,1770241847940,-250.0,0.00046594,2]
[404524972,1770241847950,-250.0,0.00046594,2]
[404524973,1770241847962,-209.40437684,0.00046594,2]
[404524974,1770241847972,-500.0,0.00046594,2]
[404524975,1770241847982,-250.0,0.00046594,2]
[404524976,1770241847991,-250.0,0.00046594,2]
[404524977,1770241848000,-500.0,0.00046594,2]
[404524978,1770241848010,-217.15233878,0.00046594,2]
[404524979,1770241848020,-250.0,0.00046594,2]
[404524980,1770241848029,-250.0,0.00046594,2]
[404524981,1770241848039,-500.0,0.00046594,2]
[404524982,1770241848048,-225.18697532,0.00046594,2]
[404524983,1770241848057,-250.0,0.00046594,2]
[404524984,1770241848066,-250.0,0.00046594,2]
[404524985,1770241848076,-500.0,0.00046594,2]
[404524986,1770241848085,-233.51889341,0.00046594,2]
[404524987,1770241848095,-250.0,0.00046594,2]
[404524988,1770241848104,-250.0,0.00046594,2]
[404524989,1770241848113,-500.0,0.00046594,2]
[404524990,1770241848122,-242.15909246,0.00046594,2]
[404524991,1770241848132,-250.0,0.00046594,2]
[404524992,1770241848141,-250.0,0.00046594,2]
[404524993,1770241848150,-500.0,0.00046594,2]
[404524994,1770241848160,-251.11897888,0.00046594,2]
[404524995,1770241848169,-500.0,0.00046594,2]
[404524996,1770241848179,-250.0,0.00046594,2]
[404524997,1770241848188,-260.4103811,0.00046594,2]
[404524998,1770241848198,-500.0,0.00046594,2]
[404524999,1770241848207,-250.0,0.00046594,2]
[404525000,1770241848216,-270.0455652,0.00046594,2]
[404525001,1770241848227,-500.0,0.00046594,2]
[404525002,1770241848239,-250.0,0.00046594,2]
[404525003,1770241848253,-151.49528749,0.00046594,2]
[404525004,1770241848267,-500.0,0.00046594,2]
[404525005,1770241848280,-500.0,0.00046594,2]
[404525006,1770241848294,-250.0,0.00046594,2]
[404525007,1770241848305,-250.0,0.00046594,2]
[404525008,1770241848316,-1000.0,0.00046594,2]
[404525009,1770241848329,-1000.0,0.00046594,2]
[404525010,1770241848342,-1000.0,0.00046594,2]
[404525011,1770241848354,-250.0,0.00046594,2]
[404525012,1770241848367,-1000.0,0.00046594,2]
[404525013,1770241848380,-250.0,0.00046594,2]
[404525014,1770241848392,-1000.0,0.00046594,2]
[404525015,1770241848406,-250.0,0.00046594,2]
[404525016,1770241848419,-1000.0,0.00046594,2]
[404525017,1770241848431,-250.0,0.00046594,2]
[404525018,1770241848442,-1000.0,0.00046594,2]
[404525019,1770241848455,-250.0,0.00046594,2]
[404525020,1770241848466,-1000.0,0.00046594,2]
[404525021,1770241848477,-250.0,0.00046594,2]
[404525022,1770241848490,-1000.0,0.00046594,2]
[404525023,1770241848502,-250.0,0.00046594,2]
[404525024,1770241848514,-1000.0,0.00046594,2]
[404525025,1770241848526,-250.0,0.00046594,2]
[404525026,1770241848536,-1000.0,0.00046594,2]
[404525027,1770241848550,-250.0,0.00046594,2]
[404525028,1770241848562,-250.0,0.00046594,2]
[404525029,1770241848574,-250.0,0.00046594,2]
[404525030,1770241848586,-515.55,0.00046976,120]
[404525031,1770241848598,-515.55,0.00047574,120]
[404525032,1770241848610,-515.55,0.00048172,120]
[404525033,1770241848621,-400.0,0.00048313,16]
[404525034,1770241848634,-1944.81,0.00048471,14]
[404525035,1770241848649,-515.55,0.00048771,120]
[404525036,1770241848660,-157.23893133,0.000488,120]
[404525037,1770241848673,-4999.98187761,0.000489,120]
[404525038,1770241848684,-700.35858256,0.00049,2]
[404525039,1770241848694,-515.55,0.00049369,120]
[404525040,1770241848704,-1540.67,0.0004958,14]
[404525041,1770241848714,-1679.05,0.0004988,120]
[404525042,1770241848725,-1152.17,0.000499,14]
[404525043,1770241848739,-515.55,0.00049967,120]
[404525044,1770241848752,-151.0,0.0005,120]
[404525045,1770241848763,-202.9290942,0.0005,120]
[404525046,1770241848774,-151.0,0.00050136,30]